Workbook

Sheet find_ρ
A1: Suchbegriff: | B1: =IF(LEN(A2)<3,"",IF(ISERROR(MATCH(TRIM(A2&"*"),x,0)),"",MATCH(TRIM(A2&"*"),x,0))) -> 3199 | C1: = Zeile in Sammlung | D1: Mit der Schaltfläche "Zeilen anpassen" kann die Zeilenhöhe an den Inhalt angepasst werden.
A2: κερδίζω | B2: <------- | C2: Für den Suchbegriff bitte mindestens 3 Zeichen in das Feld Α2 eingeben (für "ζω " bitte + einem Leerzeichen)! **)
C3: angezeigt wird eine Zeile vor dem Treffer bis 10 Zeilen nach dem Treffer.
A5: ενεστώτας | B5: NN | C5: αόριστος | D5: μετοχή | E5: σημειώσεις | F5: στα Γερμανικά
A6: =IF($B$1="","",INDIRECT("database!A"&$B$1+(ROW()-7))) -> κερδίζομαι | B6: =IF($B$1="","",INDIRECT("database!B"&$B$1+(ROW()-7))) -> 232 | C6: =IF($B$1="","",INDIRECT("database!C"&$B$1+(ROW()-7))) -> κερδήθηκα | D6: =IF($B$1="","",INDIRECT("database!D"&$B$1+(ROW()-7))) -> κερδισμένος | E6: =IF($B$1="","",INDIRECT("database!E"&$B$1+(ROW()-7))) ->  | F6: =IF(ISERROR(VLOOKUP(TRIM(A6),'GR-DE'!A:B,2,FALSE)),"---",VLOOKUP(TRIM(A6),'GR-DE'!A:B,2,FALSE)) -> ---
A7: κερδίζω | B7: 33 | C7: κέρδισα | F7: =IF(ISERROR(VLOOKUP(TRIM(A7),'GR-DE'!A:B,2,FALSE)),"---",VLOOKUP(TRIM(A7),'GR-DE'!A:B,2,FALSE)) -> profitieren, siegen
A8: κερδοσκοπώ | B8: 73 | C8: κερδοσκόπησα | F8: =IF(ISERROR(VLOOKUP(TRIM(A8),'GR-DE'!A:B,2,FALSE)),"---",VLOOKUP(TRIM(A8),'GR-DE'!A:B,2,FALSE)) -> spekulieren
A9: κερνάω | B9: 68 | C9: κέρασα | F9: =IF(ISERROR(VLOOKUP(TRIM(A9),'GR-DE'!A:B,2,FALSE)),"---",VLOOKUP(TRIM(A9),'GR-DE'!A:B,2,FALSE)) -> ausschenken, spendieren, einladen zu etwas
A10: κερνιέμαι | B10: 69 | C10: κεράστηκα | D10: κερασμένος | F10: =IF(ISERROR(VLOOKUP(TRIM(A10),'GR-DE'!A:B,2,FALSE)),"---",VLOOKUP(TRIM(A10),'GR-DE'!A:B,2,FALSE)) -> ---
A11: κερνώ | B11: 68 | C11: κέρασα | F11: =IF(ISERROR(VLOOKUP(TRIM(A11),'GR-DE'!A:B,2,FALSE)),"---",VLOOKUP(TRIM(A11),'GR-DE'!A:B,2,FALSE)) -> ---
A12: κερώνω | B12: 3 | C12: κέρωσα | D12: κερωμένος | E12: * -> σημειώσεις | F12: =IF(ISERROR(VLOOKUP(TRIM(A12),'GR-DE'!A:B,2,FALSE)),"---",VLOOKUP(TRIM(A12),'GR-DE'!A:B,2,FALSE)) -> ---
A13: κεφαλαιοποιούμαι | B13: 74, 75 | C13: κεφαλαιοποιήθηκα | D13: κεφαλαιοποιημένος | F13: =IF(ISERROR(VLOOKUP(TRIM(A13),'GR-DE'!A:B,2,FALSE)),"---",VLOOKUP(TRIM(A13),'GR-DE'!A:B,2,FALSE)) -> ---
A14: κεφαλαιοποιώ | B14: 73 | C14: κεφαλαιοποίησα | F14: =IF(ISERROR(VLOOKUP(TRIM(A14),'GR-DE'!A:B,2,FALSE)),"---",VLOOKUP(TRIM(A14),'GR-DE'!A:B,2,FALSE)) -> ---
A15: κηδεμονεύομαι | B15: 20 | C15: κηδεμονεύτηκα και κηδεμονεύθηκα | F15: =IF(ISERROR(VLOOKUP(TRIM(A15),'GR-DE'!A:B,2,FALSE)),"---",VLOOKUP(TRIM(A15),'GR-DE'!A:B,2,FALSE)) -> ---
A16: κηδεμονεύω | B16: 19, 17 | C16: κηδεμόνευσα και κηδεμόνεψα | F16: =IF(ISERROR(VLOOKUP(TRIM(A16),'GR-DE'!A:B,2,FALSE)),"---",VLOOKUP(TRIM(A16),'GR-DE'!A:B,2,FALSE)) -> ---
A17: κηδεύομαι | B17: 18 | C17: κηδεύτηκα | F17: =IF(ISERROR(VLOOKUP(TRIM(A17),'GR-DE'!A:B,2,FALSE)),"---",VLOOKUP(TRIM(A17),'GR-DE'!A:B,2,FALSE)) -> ---
A19: Datensätze aktuell: | B19: =COUNTA(x)-1 -> 6786 | C19: Datenstand vom: | D19: 2014-11-21
A20: Übersetzungen: | B20: =COUNTA('GR-DE'!A:A)-1 -> 1468 | C20: letzte Eingabe: | D20: =INDIRECT("database!A"&B19+1) -> ωχριώ
A22: ** Achtung! die richtig gesetzten Betonungszeichen eingeben, sonst funktioniert die Suche nicht!
A23: Zeilenanpassung von Hand: Die Zeilen 6 bis 17 markieren, in der Spalte ganz links mit den Zeilennummern an das Ende von Zeile 17 gehen und wenn
A24: ein horizontaler Balken mit einem Pfeil nach oben und unten erscheint einen Doppelklick machen.
A25: Wer sich an der Fehlerbehebung und Ergänzung beteiligen möchte, bitte hier:
A26: http://www.symi.at/ta_elen_dat/ta_rhmata_help.pdf

Sheet database
A1: ενεστώτας | B1: NN | C1: αόριστος | D1: μετοχή | E1: σημειώσεις
A2: αβασκαίνω | E2: -> δες βασκαίνω
A3: αβγαταίνω | B3: 47 | C3: αβγάτυνα | D3: αβγατισμένος | E3: και αβγατίζω, αβγάτισα, αβγατισμένος 33 | F3: =IF(A2&B2&C2&D2&E2=A3&B3&C3&D3&E3,"@","") -> 
A4: αβγατίζω | B4: 33 | C4: αβγάτισα | D4: αβγατισμένος
A5: αγαθοφέρνω | B5: 226 | E5: (μόνο στον ενεστ. και παρατατ.)
A6: αγαλλιάζω | B6: 35 | C6: αγαλλίασα
A7: αγανακτώ | B7: 73 | C7: αγανάκτησα | D7: αγανακτισμένος
A8: αγαναχτώ | B8: 73 | C8: αγανάκτησα | D8: αγανακτισμένος
A9: αγαντάρω | B9: 53 | C9: αγάνταρα και αγαντάρισα | D9: αγανταρισμένος
A10: αγαπάω | B10: 58 | C10: αγάπησα
A11: αγαπιέμαι | B11: 59 | C11: αγαπήθηκα | D11: αγαπημένος
A12: αγαπίζω | B12: 33 | C12: αγάπησα
A13: αγαπώ | B13: 58 | C13: αγάπησα
A14: αγγαρεύομαι | B14: 18 | C14: αγγαρεύτηκα | D14: αγγαρεμένος
A15: αγγαρεύω | B15: 17 | C15: αγγάρεψα
A16: αγγίζομαι | B16: 24 | C16: αγγίχτηκα | D16: αγγιγμένος
A17: αγγίζω | B17: 23 | C17: άγγιξα
A18: αγιάζομαι | B18: 36 | C18: αγιάστηκα | D18: αγιασμένος | E18: * -> σημειώσεις
A19: αγιάζω | B19: 35 | C19: άγιασα και αγίασα | E19: * -> σημειώσεις
A20: αγκαζάρω | B20: 55 | C20: αγκαζάρισα | D20: αγκαζαρισμένος
A21: αγκαλιάζομαι | B21: 36 | C21: αγκαλιάστηκα | D21: αγκαλιασμένος
A22: αγκαλιάζω | B22: 35 | C22: αγκάλιασα
A23: αγκιστρώνομαι | B23: 4 | C23: αγκιστρώθηκα | D23: αγκιστρωμένος
A24: αγκιστρώνω | B24: 3 | C24: αγκίστρωσα
A25: αγκομαχάω | B25: 58 | E25: (παρατατ. συνήθως -ούσα; κυρίως στον ενεστ. και παρατ.)
A26: αγκομαχώ | B26: 58 | E26: (παρατατ. συνήθως -ούσα; κυρίως στον ενεστ. και παρατ.)
A27: αγκυλώνομαι | B27: 4 | C27: αγκυλώθηκα | D27: αγκυλωμένος
A28: αγκυλώνω | B28: 3 | C28: αγκύλωσα
A29: αγκυροβολάω | B29: 58 | C29: αγκυροβόλησα | D29: αγκυροβολημένος | E29: (παρατατ. συνήθως -ούσα)
A30: αγκυροβολώ | B30: 58 | C30: αγκυροβόλησα | D30: αγκυροβολημένος | E30: (παρατατ. συνήθως -ούσα)
A31: αγκυροβολώ | B31: 73 | C31: αγκυροβόλησα | D31: αγκυροβολημένος
A32: αγκωνιάζομαι | B32: 36 | C32: αγκωνιάστηκα | D32: αγκωνιασμένος
A33: αγκωνιάζω | B33: 35 | C33: αγκώνιασα
A34: αγναντεύω | B34: 17 | C34: αγνάντεψα
A35: αγνοούμαι | B35: 74 | C35: αγνοήθηκα | D35: αγνοημένος
A36: αγνοώ | B36: 73 | C36: αγνόησα
A37: άγομαι | B37: 136 | E37: * -> σημειώσεις (να αχθώ)
A38: αγοράζομαι | B38: 36 | C38: αγοράστηκα | D38: αγορασμένος
A39: αγοράζω | B39: 35 | C39: αγόρασα
A40: αγορεύω | B40: 19 | C40: αγόρευσα
A41: αγοροφέρνω | B41: 226 | E41: (μόνο στον ενεστ. και παρατατ.)
A42: αγριεύομαι | B42: 18 | C42: αγριεύτηκα | D42: αγριεμένος | E42: * -> σημειώσεις
A43: αγριεύω | B43: 17 | C43: αγρίεψα
A44: αγρικώ | E44: -> δες γρικάω
A45: αγρυπνάω | B45: 58 | C45: αγρύπνησα | D45: αγρυπνισμένος | E45: (παρατατ. συνήθως -ούσα)
A46: αγρυπνώ | B46: 58 | C46: αγρύπνησα | D46: αγρυπνισμένος | E46: (παρατατ. συνήθως -ούσα)
A47: αγχώνομαι | B47: 4 | C47: αγχώθηκα | D47: αγχωμένος
A48: αγχώνω | B48: 3 | C48: άγχωσα
A49: άγω | B49: 135 | E49: * -> σημειώσεις (μόνο στον ενεστ.)
A50: αγωνίζομαι | B50: 34 | C50: αγωνίστηκα
A51: αγωνιώ | B51: 60 | E51: (μόνο στον ενεστ. και παρατατ.)
A52: αδειάζω | B52: 35 | C52: άδειασα
A53: αδελφώνομαι | B53: 4 | C53: αδελφώθηκα | D53: αδελφωμένος
A54: αδελφώνω | B54: 3 | C54: αδέλφωσα
A55: αδερφώνομαι | B55: 4 | C55: αδερφώθηκα | D55: αδερφωμένος
A56: αδερφώνω | B56: 3 | C56: αδέρφωσα
A57: αδημονώ | B57: 73 | E57: (μόνο στον ενεστ. και παρατατ.)
A58: αδιαθετώ | B58: 73 | C58: αδιαθέτησα
A59: αδιαφορώ | B59: 73 | C59: αδιαφόρησα
A60: αδικούμαι | B60: 74 | C60: αδικήθηκα | D60: αδικημένος
A61: αδικώ | B61: 73 | C61: αδίκησα
A62: αδρανοποιούμαι | B62: 74, 75 | C62: αδρανοποιήθηκα | D62: αδρανοποιημένος
A63: αδρανοποιώ | B63: 73 | C63: αδρανοποίησα
A64: αδρανώ | B64: 73 | C64: αδράνησα
A65: αδράχνω | B65: 29 | C65: άδραξα
A66: αδυνατίζω | B66: 33 | C66: αδυνάτισα | D66: αδυνατισμένος
A67: αδυνατώ | B67: 73 | E67: * -> σημειώσεις (μόνο στον ενεστ. και παρατατ.) | F67: =IF(A66&B66&C66&D66&E66=A67&B67&C67&D67&E67,"@","") -> 
A68: αερίζομαι | B68: 34 | C68: αερίστηκα | D68: αερισμένος
A69: αερίζω | B69: 33 | C69: αέρισα
A70: αεροβατώ | B70: 73 | E70: (κυρίως στον ενεστ. και παρατατ.)
A71: αερολογώ | B71: 73 | C71: αερολόγησα
A72: αηδιάζω | B72: 35 | C72: αηδίασα | D72: αηδιασμένος
A73: αθετούμαι | B73: 74 | C73: αθετήθηκα | D73: αθετημένος
A74: αθετώ | B74: 73 | C74: αθέτησα
A75: αθλοθετούμαι | B75: 74 | C75: αθλοθετήθηκα | D75: αθλοθετημένος
A76: αθλοθετώ | B76: 73 | C76: αθλοθέτησα
A77: αθλούμαι | B77: 74 | C77: αθλήθηκα
A78: αθροίζομαι | B78: 34 | C78: αθροίστηκα | D78: αθροισμένος
A79: αθροίζω | B79: 33 | C79: άθροισα
A80: αθωώνομαι | B80: 4 | C80: αθωώθηκα | D80: αθωωμένος
A81: αθωώνω | B81: 3 | C81: αθώωσα
A82: αιματοκυλάω | B82: 70 | C82: αιματοκύλισα | E82: * -> σημειώσεις (σπάν. αιματοκυλώ)
A83: αιματοκυλιέμαι | B83: 173 | C83: αιματοκυλίστηκα
A84: αιματοκυλίζομαι | B84: 34 | C84: αιματοκυλίστηκα
A85: αιματοκυλίζω | B85: 33 | C85: αιματοκύλισα
A86: αιμορραγώ | B86: 73 | C86: αιμορράγησα
A87: αίρομαι | B87: 81 | C87: άρθηκα
A88: αίρω | B88: 80 | C88: (ήρα)
A89: αισθάνομαι | B89: 82 | C89: αισθάνθηκα
A90: αισθηματολογώ | B90: 73 | E90: (κυρίως στον ενεστ. και παρατατ.)
A91: αισιοδοξώ | B91: 73 | E91: (μόνο στον ενεστ. και παρατατ.)
A92: αισχρολογώ | B92: 73 | E92: (κυρίως στον ενεστ. και παρατατ.)
A93: αιτιολογούμαι | B93: 74 | C93: αιτιολογήθηκα | D93: αιτιολογημένος
A94: αιτιολογώ | B94: 73 | C94: αιτιολόγησα
A95: αιφνιδιάζομαι | B95: 36 | C95: αιφνιδιάστηκα | D95: αιφνιδιασμένος
A96: αιφνιδιάζω | B96: 35 | C96: αιφνιδίασα
A97: αιχμαλωτίζομαι | B97: 34 | C97: αιχμαλωτίστηκα | D97: αιχμαλωτισμένος
A98: αιχμαλωτίζω | B98: 33 | C98: αιχμαλώτισα
A99: αιωρούμαι | B99: 74 | C99: αιωρήθηκα
A100: ακινητοποιούμαι | B100: 74, 75 | C100: ακινητοποιήθηκα | D100: ακινητοποιημένος | E100: * -> σημειώσεις
A101: ακινητοποιώ | B101: 73 | C101: ακινητοποίησα | E101: * -> σημειώσεις
A102: ακμάζω | B102: 35 | C102: άκμασα | E102: * -> σημειώσεις
A103: ακολουθούμαι | B103: 74 | C103: ακολουθήθηκα | E103: * -> σημειώσεις
A104: ακολουθώ | B104: 73 | C104: ακολούθησα | E104: * -> σημειώσεις
A105: ακομπανιάρω | B105: 55 | C105: ακομπανιάρισα
A106: ακονίζομαι | B106: 34 | C106: ακονίστηκα | D106: ακονισμένος
A107: ακονίζω | B107: 33 | C107: ακόνισα
A108: ακούγομαι | B108: 84 | C108: ακούστηκα | D108: ακουσμένος | E108: * -> σημειώσεις
A109: ακουμπάω | B109: 58 | C109: ακούμπησα | D109: ακουμπισμένος
A110: ακούω | B110: 83 | C110: άκουσα | E110: * -> σημειώσεις
A111: ακριβαίνω | B111: 47 | C111: ακρίβυνα
A112: ακριβολογώ | B112: 73 | C112: ακριβολόγησα
A113: ακροάζομαι | B113: 36 | C113: ακροάστηκα
A114: ακροβατώ | B114: 73 | E114: (μόνο στον ενεστ. και παρατατ.)
A115: ακροβολίζομαι | B115: 34 | C115: ακροβολίστηκα | D115: ακροβολισμένος
A116: ακρωτηριάζομαι | B116: 36 | C116: ακρωτηριάστηκα | D116: ακρωτηριασμένος
A117: ακρωτηριάζω | B117: 35 | C117: ακρωτηρίασα
A118: ακτινοβολάω | B118: 58 | C118: ακτινοβόλησα | E118: (παρατατ. συνήθως -ούσα)
A119: ακτινοβολώ | B119: 58 | C119: ακτινοβόλησα | E119: (παρατατ. συνήθως -ούσα)
A120: ακτινοβολώ | B120: 73 | C120: ακτινοβόλησα | E120: * -> σημειώσεις
A121: ακυρώνομαι | B121: 4 | C121: ακυρώθηκα | D121: ακυρωμένος
A122: ακυρώνω | B122: 3 | C122: ακύρωσα
A123: αλαλάζω | B123: 23 | C123: αλάλαξα
A124: αλαλιάζω | B124: 35 | C124: αλάλιασα | D124: αλαλιασμένος | E124: * -> σημειώσεις
A125: αλατίζομαι | B125: 34 | C125: αλατίστηκα | D125: αλατισμένος
A126: αλατίζω | B126: 33 | C126: αλάτισα
A127: αλαφιάζομαι | B127: 36 | C127: αλαφιάστηκα | D127: αλαφιασμένος
A128: αλαφιάζω | B128: 35 | C128: αλάφιασα
A129: αλαφραίνω | E129: -> δες ελαφραίνω
A130: αλαφρώνω | E130: -> δες ελαφρώνω
A131: αλεγράρω | B131: 55 | C131: αλεγράρισα | F131: =IF(A130&B130&C130&D130&E130=A131&B131&C131&D131&E131,"@","") -> 
A132: αλέθομαι | B132: 38 | C132: αλέστηκα | D132: αλεσμένος
A133: αλέθω | B133: 37 | C133: άλεσα
A134: αλείβομαι | B134: 8 | C134: αλείφτηκα
A135: αλείβω | B135: 7 | C135: άλειψα
A136: αλείφομαι | B136: 14 | C136: αλείφτηκα | D136: αλειμμένος
A137: αλείφω | B137: 13 | C137: άλειψα
A138: αλευρώνομαι | B138: 4 | C138: αλευρώθηκα | D138: αλευρωμένος
A139: αλευρώνω | B139: 3 | C139: αλεύρωσα
A140: αληθεύει | E140: * -> σημειώσεις (ως προσ. και απρόσ.) - αληθεύουν (ως προσ.)
A141: αλητεύω | B141: 17 | C141: αλήτεψα
A142: αλιεύομαι | B142: 20 | C142: αλιεύτηκα και αλιεύθηκα | D142: αλιευμένος
A143: αλιεύω | B143: 19 | C143: αλίευσα
A144: αλλάζομαι | B144: 24 | C144: αλλάχτηκα | D144: αλλαγμένος | E144: * -> σημειώσεις
A145: αλλάζω | B145: 23 | C145: άλλαξα
A146: αλλαξοπιστώ | B146: 73 | C146: αλλαξοπίστησα
A147: αλληθωρίζω | B147: 33 | C147: αλληθώρισα
A148: αλληλογραφώ | B148: 73 | C148: αλληλογράφησα
A149: αλλοιώνομαι | B149: 4 | C149: αλλοιώθηκα | D149: αλλοιωμένος
A150: αλλοιώνω | B150: 3 | C150: αλλοίωσα
A151: αλλοτριώνομαι | B151: 4 | C151: αλλοτριώθηκα | D151: αλλοτριωμένος
A152: αλλοτριώνω | B152: 3 | C152: αλλοτρίωσα
A153: αλυσοδένομαι | B153: 2 | C153: αλυσοδέθηκα | D153: αλυσοδεμένος
A154: αλυσοδένω | B154: 1 | C154: αλυσόδεσα
A155: αλυχτάω | B155: 58 | C155: αλύχτησα | E155: (παρατατ. συνήθως -ούσα)
A156: αλυχτώ | B156: 58 | C156: αλύχτησα | E156: (παρατατ. συνήθως -ούσα)
A157: αλφαδιάζομαι | B157: 36 | C157: αλφαδιάστηκα | D157: αλφαδιασμένος
A158: αλφαδιάζω | B158: 35 | C158: αλφάδιασα
A159: αλωνίζομαι | B159: 34 | C159: αλωνίστηκα | D159: αλωνισμένος
A160: αλωνίζω | B160: 33 | C160: αλώνισα
A161: αμαρταίνω | B161: 50 | C161: αμάρτησα
A162: αμαρτάνω | B162: 104 | C162: αμάρτησα | E162: * -> σημειώσεις
A163: αμαυρώνομαι | B163: 4 | C163: αμαυρώθηκα | D163: αμαυρωμένος
A164: αμαυρώνω | B164: 3 | C164: αμαύρωσα
A165: αμβλύνομαι | B165: 49 | C165: αμβλύνθηκα | D165: αμβλυμμένος
A166: αμβλύνω | B166: 48 | C166: άμβλυνα
A167: αμείβομαι | B167: 8 | C167: αμείφτηκα και αμείφθηκα
A168: αμείβω | B168: 7 | C168: άμειψα
A169: αμελούμαι | B169: 74 | C169: αμελήθηκα | D169: αμελημένος
A170: αμελώ | B170: 73 | C170: αμέλησα
A171: αμιλλώμαι | B171: 61 | E171: (μόνο στον ενεστ.)
A172: αμνηστεύομαι | B172: 20 | C172: αμνηστεύτηκα και αμνηστεύθηκα | D172: αμνηστευμένος
A173: αμνηστεύω | B173: 19 | C173: αμνήστευσα
A174: αμολάω | B174: 58 | C174: αμόλησα | E174: (δε συνηθίζεται η κλίση σε -ώ)
A175: αμολιέμαι | B175: 59 | C175: αμολήθηκα | D175: αμολημένος
A176: αμπαλάρομαι | B176: 54 | C176: αμπαλαρίστηκα | D176: αμπαλαρισμένος
A177: αμπαλάρω | B177: 55 | C177: αμπαλάρισα
A178: αμπαρώνομαι | B178: 4 | C178: αμπαρώθηκα | D178: αμπαρωμένος
A179: αμπαρώνω | B179: 3 | C179: αμπάρωσα
A180: αμύνομαι | B180: 49 | C180: αμύνθηκα
A181: αμφιβάλλω | B181: 146 | C181: αμφέβαλα
A182: αμφισβητούμαι | B182: 74 | C182: αμφισβητήθηκα | D182: αμφισβητημένος | E182: * -> σημειώσεις
A183: αμφισβητώ | B183: 73 | C183: αμφισβήτησα
A184: αμφιταλαντεύομαι | B184: 20 | C184: αμφιταλαντεύτηκα και αμφιταλαντεύθηκα
A185: αναβάλλομαι | B185: 147 | C185: αναβλήθηκα
A186: αναβάλλω | B186: 146 | C186: ανέβαλα
A187: αναβαπτίζομαι | B187: 34 | C187: αναβαπτίστηκα | D187: αναβαπτισμένος
A188: αναβαπτίζω | B188: 33 | C188: αναβάπτισα
A189: αναβιώνω | B189: 3 | C189: αναβίωσα
A190: αναβλέπω | B190: 9 | C190: ανέβλεψα και ανάβλεψα
A191: αναβλύζω | B191: 33 | C191: ανέβλυσα και ανάβλυσα
A192: ανάβομαι | B192: 8 | C192: ανάφτηκα | D192: αναμμένος | E192: * -> σημειώσεις
A193: αναβράζω | B193: 35 | E193: * -> σημειώσεις (κυρίως στον ενεστ.)
A194: αναβρύζω | E194: -> δες αναβλύζω
A195: ανάβω | B195: 7 | C195: άναψα | F195: =IF(A194&B194&C194&D194&E194=A195&B195&C195&D195&E195,"@","") -> 
A196: αναγαλλιάζω | B196: 35 | C196: αναγάλλιασα
A197: αναγγέλλομαι | B197: 86 | C197: αναγγέλθηκα | D197: αναγγελμένος
A198: αναγγέλλω | B198: 85 | C198: ανήγγειλα και ανάγγειλα
A199: αναγεννιέμαι | B199: 59 | C199: αναγεννήθηκα | D199: αναγεννημένος | E199: * -> σημειώσεις
A200: αναγεννώμαι | B200: 61 | C200: αναγεννήθηκα | D200: αναγεννημένος | E200: * -> σημειώσεις
... 6587 more rows

Sheet stats
A1: Regel # | B1: Anzahl | C1: Regel # | D1: Anzahl | E1: Regel # | F1: Anzahl | G1: Regel # | H1: Anzahl | I1: Regel # | J1: Anzahl | L1: Häufigste: | M1: Regel # | N1: Anzahl
A2: 1 | B2: =COUNTIF(database!B:B,stats!A2) -> 32 | C2: 51 | D2: =COUNTIF(database!B:B,stats!C2) -> 2 | E2: 101 | F2: =COUNTIF(database!B:B,stats!E2) -> 2 | G2: 150 | H2: =COUNTIF(database!B:B,stats!G2) -> 2 | I2: 200 | J2: =COUNTIF(database!B:B,stats!I2) -> 3 | M2: 73 | N2: =COUNTIF(database!B:B,M2) -> 593
A3: =A2+1 -> 2 | B3: =COUNTIF(database!B:B,stats!A3) -> 39 | C3: =C2+1 -> 52 | D3: =COUNTIF(database!B:B,stats!C3) -> 5 | E3: =E2+1 -> 102 | F3: =COUNTIF(database!B:B,stats!E3) -> 1 | G3: =G2+1 -> 151 | H3: =COUNTIF(database!B:B,stats!G3) -> 8 | I3: =I2+1 -> 201 | J3: =COUNTIF(database!B:B,stats!I3) -> 1 | M3: 33 | N3: =COUNTIF(database!B:B,M3) -> 589
A4: =A3+1 -> 3 | B4: =COUNTIF(database!B:B,stats!A4) -> 520 | C4: =C3+1 -> 53 | D4: =COUNTIF(database!B:B,stats!C4) -> 67 | E4: =E3+1 -> 103 | F4: =COUNTIF(database!B:B,stats!E4) -> 1 | G4: =G3+1 -> 152 | H4: =COUNTIF(database!B:B,stats!G4) -> 4 | I4: =I3+1 -> 202 | J4: =COUNTIF(database!B:B,stats!I4) -> 1 | M4: 3 | N4: =COUNTIF(database!B:B,M4) -> 520
A5: 4 | B5: =COUNTIF(database!B:B,stats!A5) -> 419 | C5: 54 | D5: =COUNTIF(database!B:B,stats!C5) -> 46 | E5: 104 | F5: =COUNTIF(database!B:B,stats!E5) -> 6 | G5: 153 | H5: =COUNTIF(database!B:B,stats!G5) -> 3 | I5: 203 | J5: =COUNTIF(database!B:B,stats!I5) -> 1 | M5: 34 | N5: =COUNTIF(database!B:B,M5) -> 439
A6: 5 | B6: =COUNTIF(database!B:B,stats!A6) -> 31 | C6: 55 | D6: =COUNTIF(database!B:B,stats!C6) -> 62 | E6: 105 | F6: =COUNTIF(database!B:B,stats!E6) -> 3 | G6: 154 | H6: =COUNTIF(database!B:B,stats!G6) -> 6 | I6: 204 | J6: =COUNTIF(database!B:B,stats!I6) -> 2 | M6: 4 | N6: =COUNTIF(database!B:B,M6) -> 419
A7: 6 | B7: =COUNTIF(database!B:B,stats!A7) -> 26 | C7: 56 | D7: =COUNTIF(database!B:B,stats!C7) -> 2 | E7: 106 | F7: =COUNTIF(database!B:B,stats!E7) -> 1 | G7: 155 | H7: =COUNTIF(database!B:B,stats!G7) -> 1 | I7: 205 | J7: =COUNTIF(database!B:B,stats!I7) -> 2 | M7: 58 | N7: =COUNTIF(database!B:B,M7) -> 370
A8: 7 | B8: =COUNTIF(database!B:B,stats!A8) -> 35 | C8: 57 | D8: =COUNTIF(database!B:B,stats!C8) -> 2 | E8: 107 | F8: =COUNTIF(database!B:B,stats!E8) -> 1 | G8: 156 | H8: =COUNTIF(database!B:B,stats!G8) -> 1 | I8: 206 | J8: =COUNTIF(database!B:B,stats!I8) -> 4 | M8: 35 | N8: =COUNTIF(database!B:B,M8) -> 341
A9: 8 | B9: =COUNTIF(database!B:B,stats!A9) -> 19 | C9: 58 | D9: =COUNTIF(database!B:B,stats!C9) -> 370 | E9: 108 | F9: =COUNTIF(database!B:B,stats!E9) -> 3 | G9: 157 | H9: =COUNTIF(database!B:B,stats!G9) -> 1 | I9: 207 | J9: =COUNTIF(database!B:B,stats!I9) -> 8 | M9: 74 | N9: =COUNTIF(database!B:B,M9) -> 287
A10: 9 | B10: =COUNTIF(database!B:B,stats!A10) -> 30 | C10: 59 | D10: =COUNTIF(database!B:B,stats!C10) -> 106 | E10: 109 | F10: =COUNTIF(database!B:B,stats!E10) -> 2 | G10: 158 | H10: =COUNTIF(database!B:B,stats!G10) -> 12 | I10: 208 | J10: =COUNTIF(database!B:B,stats!I10) -> 3 | M10: 36 | N10: =COUNTIF(database!B:B,M10) -> 207
A11: 10 | B11: =COUNTIF(database!B:B,stats!A11) -> 12 | C11: 60 | D11: =COUNTIF(database!B:B,stats!C11) -> 46 | E11: 110 | F11: =COUNTIF(database!B:B,stats!E11) -> 3 | G11: 159 | H11: =COUNTIF(database!B:B,stats!G11) -> 13 | I11: 209 | J11: =COUNTIF(database!B:B,stats!I11) -> 2 | M11: 17 | N11: =COUNTIF(database!B:B,M11) -> 133
A12: 11 | B12: =COUNTIF(database!B:B,stats!A12) -> 27 | C12: 61 | D12: =COUNTIF(database!B:B,stats!C12) -> 59 | E12: 111 | F12: =COUNTIF(database!B:B,stats!E12) -> 1 | G12: 160 | H12: =COUNTIF(database!B:B,stats!G12) -> 5 | I12: 210 | J12: =COUNTIF(database!B:B,stats!I12) -> 9 | M12: 59 | N12: =COUNTIF(database!B:B,M12) -> 106
A13: 12 | B13: =COUNTIF(database!B:B,stats!A13) -> 23 | C13: 62 | D13: =COUNTIF(database!B:B,stats!C13) -> 17 | E13: 112 | F13: =COUNTIF(database!B:B,stats!E13) -> 1 | G13: 161 | H13: =COUNTIF(database!B:B,stats!G13) -> 3 | I13: 211 | J13: =COUNTIF(database!B:B,stats!I13) -> 2 | M13: 20 | N13: =COUNTIF(database!B:B,M13) -> 102
A14: 13 | B14: =COUNTIF(database!B:B,stats!A14) -> 34 | C14: 63 | D14: =COUNTIF(database!B:B,stats!C14) -> 6 | E14: 113 | F14: =COUNTIF(database!B:B,stats!E14) -> 3 | G14: 162 | H14: =COUNTIF(database!B:B,stats!G14) -> 4 | I14: 212 | J14: =COUNTIF(database!B:B,stats!I14) -> 2 | M14: 19 | N14: =COUNTIF(database!B:B,M14) -> 95
A15: 14 | B15: =COUNTIF(database!B:B,stats!A15) -> 9 | C15: 64 | D15: =COUNTIF(database!B:B,stats!C15) -> 15 | E15: 114 | F15: =COUNTIF(database!B:B,stats!E15) -> 1 | G15: 163 | H15: =COUNTIF(database!B:B,stats!G15) -> 7 | I15: 213 | J15: =COUNTIF(database!B:B,stats!I15) -> 4 | M15: 23 | N15: =COUNTIF(database!B:B,M15) -> 89
A16: 15 | B16: =COUNTIF(database!B:B,stats!A16) -> 4 | C16: 65 | D16: =COUNTIF(database!B:B,stats!C16) -> 4 | E16: 115 | F16: =COUNTIF(database!B:B,stats!E16) -> 2 | G16: 164 | H16: =COUNTIF(database!B:B,stats!G16) -> 5 | I16: 214 | J16: =COUNTIF(database!B:B,stats!I16) -> 15 | M16: 18 | N16: =COUNTIF(database!B:B,M16) -> 82
A17: 16 | B17: =COUNTIF(database!B:B,stats!A17) -> 2 | C17: 66 | D17: =COUNTIF(database!B:B,stats!C17) -> 27 | E17: 116 | F17: =COUNTIF(database!B:B,stats!E17) -> 1 | G17: 165 | H17: =COUNTIF(database!B:B,stats!G17) -> 13 | I17: 215 | J17: =COUNTIF(database!B:B,stats!I17) -> 1 | M17: 74, 75 | N17: =COUNTIF(database!B:B,M17) -> 74
A18: 17 | B18: =COUNTIF(database!B:B,stats!A18) -> 133 | C18: 67 | D18: =COUNTIF(database!B:B,stats!C18) -> 10 | E18: 117 | F18: =COUNTIF(database!B:B,stats!E18) -> 1 | G18: 166 | H18: =COUNTIF(database!B:B,stats!G18) -> 15 | I18: 216 | J18: =COUNTIF(database!B:B,stats!I18) -> 2 | M18: 53 | N18: =COUNTIF(database!B:B,M18) -> 67
A19: 18 | B19: =COUNTIF(database!B:B,stats!A19) -> 82 | C19: 68 | D19: =COUNTIF(database!B:B,stats!C19) -> 45 | E19: 118 | F19: =COUNTIF(database!B:B,stats!E19) -> 1 | G19: 167 | H19: =COUNTIF(database!B:B,stats!G19) -> 3 | I19: 217 | J19: =COUNTIF(database!B:B,stats!I19) -> 28 | M19: 44 | N19: =COUNTIF(database!B:B,M19) -> 64
A20: 19 | B20: =COUNTIF(database!B:B,stats!A20) -> 95 | C20: 69 | D20: =COUNTIF(database!B:B,stats!C20) -> 10 | E20: 119 | F20: =COUNTIF(database!B:B,stats!E20) -> 4 | G20: 168 | H20: =COUNTIF(database!B:B,stats!G20) -> 1 | I20: 218 | J20: =COUNTIF(database!B:B,stats!I20) -> 18 | M20: 55 | N20: =COUNTIF(database!B:B,M20) -> 62
A21: 20 | B21: =COUNTIF(database!B:B,stats!A21) -> 102 | C21: 70 | D21: =COUNTIF(database!B:B,stats!C21) -> 26 | E21: 120 | F21: =COUNTIF(database!B:B,stats!E21) -> 6 | G21: 169 | H21: =COUNTIF(database!B:B,stats!G21) -> 2 | I21: =I20+1 -> 219 | J21: =COUNTIF(database!B:B,stats!I21) -> 4 | M21: 61 | N21: =COUNTIF(database!B:B,M21) -> 59
A22: 21 | B22: =COUNTIF(database!B:B,stats!A22) -> 26 | C22: 71 | D22: =COUNTIF(database!B:B,stats!C22) -> 11 | E22: 121 | F22: =COUNTIF(database!B:B,stats!E22) -> 3 | G22: 170 | H22: =COUNTIF(database!B:B,stats!G22) -> 1 | I22: 220 | J22: =COUNTIF(database!B:B,stats!I22) -> 5 | M22: 54 | N22: =COUNTIF(database!B:B,M22) -> 46
A23: 22 | B23: =COUNTIF(database!B:B,stats!A23) -> 23 | C23: 72 | D23: =COUNTIF(database!B:B,stats!C23) -> 9 | E23: 122 | F23: =COUNTIF(database!B:B,stats!E23) -> 16 | G23: 171 | H23: =COUNTIF(database!B:B,stats!G23) -> 4 | I23: 221 | J23: =COUNTIF(database!B:B,stats!I23) -> 4 | M23: 60 | N23: =COUNTIF(database!B:B,M23) -> 46
A24: 23 | B24: =COUNTIF(database!B:B,stats!A24) -> 89 | C24: 73 | D24: =COUNTIF(database!B:B,stats!C24) -> 593 | E24: 123 | F24: =COUNTIF(database!B:B,stats!E24) -> 1 | G24: 172 | H24: =COUNTIF(database!B:B,stats!G24) -> 26 | I24: 222 | J24: =COUNTIF(database!B:B,stats!I24) -> 2 | M24: 68 | N24: =COUNTIF(database!B:B,M24) -> 45
A25: 24 | B25: =COUNTIF(database!B:B,stats!A25) -> 37 | C25: 74 | D25: =COUNTIF(database!B:B,stats!C25) -> 287 | E25: 124 | F25: =COUNTIF(database!B:B,stats!E25) -> 4 | G25: 173 | H25: =COUNTIF(database!B:B,stats!G25) -> 8 | I25: 223 | J25: =COUNTIF(database!B:B,stats!I25) -> 4 | M25: 27 | N25: =COUNTIF(database!B:B,M25) -> 42
A26: 25 | B26: =COUNTIF(database!B:B,stats!A26) -> 11 | C26: 75 | D26: =COUNTIF(database!B:B,stats!C26) -> 1 | E26: 125 | F26: =COUNTIF(database!B:B,stats!E26) -> 3 | G26: 174 | H26: =COUNTIF(database!B:B,stats!G26) -> 3 | I26: 224 | J26: =COUNTIF(database!B:B,stats!I26) -> 1 | M26: 2 | N26: =COUNTIF(database!B:B,M26) -> 39
A27: 26 | B27: =COUNTIF(database!B:B,stats!A27) -> 7 | C27: 76 | D27: =COUNTIF(database!B:B,stats!C27) -> 31 | E27: 126 | F27: =COUNTIF(database!B:B,stats!E27) -> 3 | G27: 175 | H27: =COUNTIF(database!B:B,stats!G27) -> 1 | I27: 225 | J27: =COUNTIF(database!B:B,stats!I27) -> 7 | M27: 24 | N27: =COUNTIF(database!B:B,M27) -> 37
A28: 27 | B28: =COUNTIF(database!B:B,stats!A28) -> 42 | C28: 77 | D28: =COUNTIF(database!B:B,stats!C28) -> 14 | E28: 127 | F28: =COUNTIF(database!B:B,stats!E28) -> 1 | G28: 176 | H28: =COUNTIF(database!B:B,stats!G28) -> 10 | I28: 226 | J28: =COUNTIF(database!B:B,stats!I28) -> 10 | M28: 7 | N28: =COUNTIF(database!B:B,M28) -> 35
A29: 28 | B29: =COUNTIF(database!B:B,stats!A29) -> 35 | C29: 78 | D29: =COUNTIF(database!B:B,stats!C29) -> 12 | E29: 128 | F29: =COUNTIF(database!B:B,stats!E29) -> 3 | G29: 177 | H29: =COUNTIF(database!B:B,stats!G29) -> 8 | I29: 227 | J29: =COUNTIF(database!B:B,stats!I29) -> 2 | M29: 28 | N29: =COUNTIF(database!B:B,M29) -> 35
A30: 29 | B30: =COUNTIF(database!B:B,stats!A30) -> 17 | C30: 79 | D30: =COUNTIF(database!B:B,stats!C30) -> 10 | E30: 129 | F30: =COUNTIF(database!B:B,stats!E30) -> 3 | G30: 178 | H30: =COUNTIF(database!B:B,stats!G30) -> 11 | I30: 228 | J30: =COUNTIF(database!B:B,stats!I30) -> 6 | M30: 13 | N30: =COUNTIF(database!B:B,M30) -> 34
A31: 30 | B31: =COUNTIF(database!B:B,stats!A31) -> 14 | C31: 80 | D31: =COUNTIF(database!B:B,stats!C31) -> 2 | E31: 130 | F31: =COUNTIF(database!B:B,stats!E31) -> 3 | G31: 179 | H31: =COUNTIF(database!B:B,stats!G31) -> 1 | I31: 229 | J31: =COUNTIF(database!B:B,stats!I31) -> 4 | M31: 49 | N31: =COUNTIF(database!B:B,M31) -> 34
A32: 31 | B32: =COUNTIF(database!B:B,stats!A32) -> 16 | C32: 81 | D32: =COUNTIF(database!B:B,stats!C32) -> 2 | E32: 131 | F32: =COUNTIF(database!B:B,stats!E32) -> 6 | G32: 180 | H32: =COUNTIF(database!B:B,stats!G32) -> 9 | I32: 230 | J32: =COUNTIF(database!B:B,stats!I32) -> 1 | M32: 1 | N32: =COUNTIF(database!B:B,M32) -> 32
A33: 32 | B33: =COUNTIF(database!B:B,stats!A33) -> 15 | C33: 82 | D33: =COUNTIF(database!B:B,stats!C33) -> 5 | E33: 132 | F33: =COUNTIF(database!B:B,stats!E33) -> 4 | G33: 181 | H33: =COUNTIF(database!B:B,stats!G33) -> 1 | I33: 231 | J33: =COUNTIF(database!B:B,stats!I33) -> 3 | M33: 5 | N33: =COUNTIF(database!B:B,M33) -> 31
A34: 33 | B34: =COUNTIF(database!B:B,stats!A34) -> 589 | C34: 83 | D34: =COUNTIF(database!B:B,stats!C34) -> 4 | E34: 133 | F34: =COUNTIF(database!B:B,stats!E34) -> 7 | G34: 182 | H34: =COUNTIF(database!B:B,stats!G34) -> 2 | I34: 232 | J34: =COUNTIF(database!B:B,stats!I34) -> 2 | M34: 48 | N34: =COUNTIF(database!B:B,M34) -> 31
A35: 34 | B35: =COUNTIF(database!B:B,stats!A35) -> 439 | C35: 84 | D35: =COUNTIF(database!B:B,stats!C35) -> 1 | E35: 134 | F35: =COUNTIF(database!B:B,stats!E35) -> 1 | G35: 183 | H35: =COUNTIF(database!B:B,stats!G35) -> 1 | I35: 233 | J35: =COUNTIF(database!B:B,stats!I35) -> 4 | M35: 76 | N35: =COUNTIF(database!B:B,M35) -> 31
A36: 35 | B36: =COUNTIF(database!B:B,stats!A36) -> 341 | C36: 85 | D36: =COUNTIF(database!B:B,stats!C36) -> 15 | E36: 135 | F36: =COUNTIF(database!B:B,stats!E36) -> 11 | G36: 184 | H36: =COUNTIF(database!B:B,stats!G36) -> 1 | I36: 234 | J36: =COUNTIF(database!B:B,stats!I36) -> 2 | M36: 9 | N36: =COUNTIF(database!B:B,M36) -> 30
A37: 36 | B37: =COUNTIF(database!B:B,stats!A37) -> 207 | C37: 86 | D37: =COUNTIF(database!B:B,stats!C37) -> 7 | E37: 136 | F37: =COUNTIF(database!B:B,stats!E37) -> 12 | G37: 185 | H37: =COUNTIF(database!B:B,stats!G37) -> 3 | I37: 235 | J37: =COUNTIF(database!B:B,stats!I37) -> 1 | M37: 217 | N37: =COUNTIF(database!B:B,M37) -> 28
A38: 37 | B38: =COUNTIF(database!B:B,stats!A38) -> 10 | C38: 87 | D38: =COUNTIF(database!B:B,stats!C38) -> 7 | E38: 137 | F38: =COUNTIF(database!B:B,stats!E38) -> 15 | G38: 186 | H38: =COUNTIF(database!B:B,stats!G38) -> 14 | I38: 17, 19 | J38: =COUNTIF(database!B:B,stats!I38) -> 16 | M38: 11 | N38: =COUNTIF(database!B:B,M38) -> 27
A39: 38 | B39: =COUNTIF(database!B:B,stats!A39) -> 8 | C39: 88 | D39: =COUNTIF(database!B:B,stats!C39) -> 6 | E39: 138 | F39: =COUNTIF(database!B:B,stats!E39) -> 19 | G39: 187 | H39: =COUNTIF(database!B:B,stats!G39) -> 12 | I39: 19, 17 | J39: =COUNTIF(database!B:B,stats!I39) -> 25 | M39: 66 | N39: =COUNTIF(database!B:B,M39) -> 27
A40: 39 | B40: =COUNTIF(database!B:B,stats!A40) -> 9 | C40: 89 | D40: =COUNTIF(database!B:B,stats!C40) -> 2 | E40: 139 | F40: =COUNTIF(database!B:B,stats!E40) -> 5 | G40: 188 | H40: =COUNTIF(database!B:B,stats!G40) -> 10 | I40: 74, 75 | J40: =COUNTIF(database!B:B,stats!I40) -> 74 | M40: 6 | N40: =COUNTIF(database!B:B,M40) -> 26
A41: 40 | B41: =COUNTIF(database!B:B,stats!A41) -> 12 | C41: 90 | D41: =COUNTIF(database!B:B,stats!C41) -> 3 | E41: 140 | F41: =COUNTIF(database!B:B,stats!E41) -> 6 | G41: 189 | H41: =COUNTIF(database!B:B,stats!G41) -> 1 | I41: 26, 212 | J41: =COUNTIF(database!B:B,stats!I41) -> 1 | M41: 21 | N41: =COUNTIF(database!B:B,M41) -> 26
A42: 41 | B42: =COUNTIF(database!B:B,stats!A42) -> 14 | C42: 91 | D42: =COUNTIF(database!B:B,stats!C42) -> 7 | E42: 141 | F42: =COUNTIF(database!B:B,stats!E42) -> 6 | G42: 190 | H42: =COUNTIF(database!B:B,stats!G42) -> 8 | I42: 45, 46 | J42: =COUNTIF(database!B:B,stats!I42) -> 1 | M42: 46 | N42: =COUNTIF(database!B:B,M42) -> 26
A43: 42 | B43: =COUNTIF(database!B:B,stats!A43) -> 22 | C43: 92 | D43: =COUNTIF(database!B:B,stats!C43) -> 4 | E43: 142 | F43: =COUNTIF(database!B:B,stats!E43) -> 1 | G43: 191 | H43: =COUNTIF(database!B:B,stats!G43) -> 5 | M43: 70 | N43: =COUNTIF(database!B:B,M43) -> 26
A44: 43 | B44: =COUNTIF(database!B:B,stats!A44) -> 4 | C44: 93 | D44: =COUNTIF(database!B:B,stats!C44) -> 1 | E44: 143 | F44: =COUNTIF(database!B:B,stats!E44) -> 5 | G44: 192 | H44: =COUNTIF(database!B:B,stats!G44) -> 2 | M44: 172 | N44: =COUNTIF(database!B:B,M44) -> 26
A45: 44 | B45: =COUNTIF(database!B:B,stats!A45) -> 64 | C45: 94 | D45: =COUNTIF(database!B:B,stats!C45) -> 2 | E45: 144 | F45: =COUNTIF(database!B:B,stats!E45) -> 4 | G45: 193 | H45: =COUNTIF(database!B:B,stats!G45) -> 6 | M45: 19, 17 | N45: =COUNTIF(database!B:B,M45) -> 25
A46: 45 | B46: =COUNTIF(database!B:B,stats!A46) -> 22 | C46: 95 | D46: =COUNTIF(database!B:B,stats!C46) -> 4 | E46: 145 | F46: =COUNTIF(database!B:B,stats!E46) -> 8 | G46: 194 | H46: =COUNTIF(database!B:B,stats!G46) -> 1 | M46: 12 | N46: =COUNTIF(database!B:B,M46) -> 23
A47: 46 | B47: =COUNTIF(database!B:B,stats!A47) -> 26 | C47: 96 | D47: =COUNTIF(database!B:B,stats!C47) -> 3 | E47: 146 | F47: =COUNTIF(database!B:B,stats!E47) -> 23 | G47: 195 | H47: =COUNTIF(database!B:B,stats!G47) -> 3 | M47: 22 | N47: =COUNTIF(database!B:B,M47) -> 23
A48: 47 | B48: =COUNTIF(database!B:B,stats!A48) -> 23 | C48: 97 | D48: =COUNTIF(database!B:B,stats!C48) -> 1 | E48: 147 | F48: =COUNTIF(database!B:B,stats!E48) -> 18 | G48: 196 | H48: =COUNTIF(database!B:B,stats!G48) -> 2 | M48: 47 | N48: =COUNTIF(database!B:B,M48) -> 23
A49: 48 | B49: =COUNTIF(database!B:B,stats!A49) -> 31 | C49: 98 | D49: =COUNTIF(database!B:B,stats!C49) -> 1 | E49: 148 | F49: =COUNTIF(database!B:B,stats!E49) -> 4 | G49: 197 | H49: =COUNTIF(database!B:B,stats!G49) -> 2 | M49: 146 | N49: =COUNTIF(database!B:B,M49) -> 23
A50: 49 | B50: =COUNTIF(database!B:B,stats!A50) -> 34 | C50: 99 | D50: =COUNTIF(database!B:B,stats!C50) -> 1 | E50: 149 | F50: =COUNTIF(database!B:B,stats!E50) -> 1 | G50: 198 | H50: =COUNTIF(database!B:B,stats!G50) -> 3 | M50: 42 | N50: =COUNTIF(database!B:B,M50) -> 22
A51: 50 | B51: =COUNTIF(database!B:B,stats!A51) -> 9 | C51: 100 | D51: =COUNTIF(database!B:B,stats!C51) -> 1 | E51: 150 | F51: =COUNTIF(database!B:B,stats!E51) -> 2 | G51: 199 | H51: =COUNTIF(database!B:B,stats!G51) -> 2 | M51: 45 | N51: =COUNTIF(database!B:B,M51) -> 22
K52: Summe | M52: 8 | N52: =COUNTIF(database!B:B,M52) -> 19
A53: Summen | B53: =SUM(B2:B51) -> 3870 | D53: =SUM(D2:D51) -> 1974 | F53: =SUM(F2:F51) -> 242 | H53: =SUM(H2:H51) -> 270 | J53: =SUM(J2:J51) -> 287 | K53: =SUM(B53:H53) -> 6356 | M53: 138 | N53: =COUNTIF(database!B:B,M53) -> 19
M54: 147 | N54: =COUNTIF(database!B:B,M54) -> 18
M55: 218 | N55: =COUNTIF(database!B:B,M55) -> 18
M56: 29 | N56: =COUNTIF(database!B:B,M56) -> 17
M57: 62 | N57: =COUNTIF(database!B:B,M57) -> 17
M58: 31 | N58: =COUNTIF(database!B:B,M58) -> 16
M59: 122 | N59: =COUNTIF(database!B:B,M59) -> 16
M60: 17, 19 | N60: =COUNTIF(database!B:B,M60) -> 16
M61: 32 | N61: =COUNTIF(database!B:B,M61) -> 15
M62: 64 | N62: =COUNTIF(database!B:B,M62) -> 15
M63: 85 | N63: =COUNTIF(database!B:B,M63) -> 15
M64: 137 | N64: =COUNTIF(database!B:B,M64) -> 15
M65: 166 | N65: =COUNTIF(database!B:B,M65) -> 15
M66: 214 | N66: =COUNTIF(database!B:B,M66) -> 15
M67: 30 | N67: =COUNTIF(database!B:B,M67) -> 14
M68: 41 | N68: =COUNTIF(database!B:B,M68) -> 14
M69: 77 | N69: =COUNTIF(database!B:B,M69) -> 14
M70: 186 | N70: =COUNTIF(database!B:B,M70) -> 14
M71: 159 | N71: =COUNTIF(database!B:B,M71) -> 13
M72: 165 | N72: =COUNTIF(database!B:B,M72) -> 13
M73: 10 | N73: =COUNTIF(database!B:B,M73) -> 12
M74: 40 | N74: =COUNTIF(database!B:B,M74) -> 12
M75: 78 | N75: =COUNTIF(database!B:B,M75) -> 12
M76: 136 | N76: =COUNTIF(database!B:B,M76) -> 12
M77: 158 | N77: =COUNTIF(database!B:B,M77) -> 12
M78: 187 | N78: =COUNTIF(database!B:B,M78) -> 12
M79: 25 | N79: =COUNTIF(database!B:B,M79) -> 11
M80: 71 | N80: =COUNTIF(database!B:B,M80) -> 11
M81: 135 | N81: =COUNTIF(database!B:B,M81) -> 11
M82: 178 | N82: =COUNTIF(database!B:B,M82) -> 11
M83: 37 | N83: =COUNTIF(database!B:B,M83) -> 10
M84: 67 | N84: =COUNTIF(database!B:B,M84) -> 10
M85: 69 | N85: =COUNTIF(database!B:B,M85) -> 10
M86: 79 | N86: =COUNTIF(database!B:B,M86) -> 10
M87: 176 | N87: =COUNTIF(database!B:B,M87) -> 10
M88: 188 | N88: =COUNTIF(database!B:B,M88) -> 10
M89: 226 | N89: =COUNTIF(database!B:B,M89) -> 10
M90: 14 | N90: =COUNTIF(database!B:B,M90) -> 9
M91: 39 | N91: =COUNTIF(database!B:B,M91) -> 9
M92: 50 | N92: =COUNTIF(database!B:B,M92) -> 9
M93: 72 | N93: =COUNTIF(database!B:B,M93) -> 9
M94: 180 | N94: =COUNTIF(database!B:B,M94) -> 9
M95: 210 | N95: =COUNTIF(database!B:B,M95) -> 9
M96: 38 | N96: =COUNTIF(database!B:B,M96) -> 8
M97: 145 | N97: =COUNTIF(database!B:B,M97) -> 8
M98: 151 | N98: =COUNTIF(database!B:B,M98) -> 8
M99: 173 | N99: =COUNTIF(database!B:B,M99) -> 8
M100: 177 | N100: =COUNTIF(database!B:B,M100) -> 8
M101: 190 | N101: =COUNTIF(database!B:B,M101) -> 8
M102: 207 | N102: =COUNTIF(database!B:B,M102) -> 8
M103: 26 | N103: =COUNTIF(database!B:B,M103) -> 7
M104: 86 | N104: =COUNTIF(database!B:B,M104) -> 7
M105: 87 | N105: =COUNTIF(database!B:B,M105) -> 7
M106: 91 | N106: =COUNTIF(database!B:B,M106) -> 7
M107: 133 | N107: =COUNTIF(database!B:B,M107) -> 7
M108: 163 | N108: =COUNTIF(database!B:B,M108) -> 7
M109: 225 | N109: =COUNTIF(database!B:B,M109) -> 7
M110: 63 | N110: =COUNTIF(database!B:B,M110) -> 6
M111: 88 | N111: =COUNTIF(database!B:B,M111) -> 6
M112: 104 | N112: =COUNTIF(database!B:B,M112) -> 6
M113: 120 | N113: =COUNTIF(database!B:B,M113) -> 6
M114: 131 | N114: =COUNTIF(database!B:B,M114) -> 6
M115: 140 | N115: =COUNTIF(database!B:B,M115) -> 6
M116: 141 | N116: =COUNTIF(database!B:B,M116) -> 6
M117: 154 | N117: =COUNTIF(database!B:B,M117) -> 6
M118: 193 | N118: =COUNTIF(database!B:B,M118) -> 6
M119: 228 | N119: =COUNTIF(database!B:B,M119) -> 6
M120: 52 | N120: =COUNTIF(database!B:B,M120) -> 5
M121: 82 | N121: =COUNTIF(database!B:B,M121) -> 5
M122: 139 | N122: =COUNTIF(database!B:B,M122) -> 5
M123: 143 | N123: =COUNTIF(database!B:B,M123) -> 5
M124: 160 | N124: =COUNTIF(database!B:B,M124) -> 5
M125: 164 | N125: =COUNTIF(database!B:B,M125) -> 5
M126: 191 | N126: =COUNTIF(database!B:B,M126) -> 5
M127: 220 | N127: =COUNTIF(database!B:B,M127) -> 5
M128: 15 | N128: =COUNTIF(database!B:B,M128) -> 4
M129: 43 | N129: =COUNTIF(database!B:B,M129) -> 4
M130: 65 | N130: =COUNTIF(database!B:B,M130) -> 4
M131: 83 | N131: =COUNTIF(database!B:B,M131) -> 4
M132: 92 | N132: =COUNTIF(database!B:B,M132) -> 4
M133: 95 | N133: =COUNTIF(database!B:B,M133) -> 4
M134: 119 | N134: =COUNTIF(database!B:B,M134) -> 4
M135: 124 | N135: =COUNTIF(database!B:B,M135) -> 4
M136: 132 | N136: =COUNTIF(database!B:B,M136) -> 4
M137: 144 | N137: =COUNTIF(database!B:B,M137) -> 4
M138: 148 | N138: =COUNTIF(database!B:B,M138) -> 4
M139: 152 | N139: =COUNTIF(database!B:B,M139) -> 4
M140: 162 | N140: =COUNTIF(database!B:B,M140) -> 4
M141: 171 | N141: =COUNTIF(database!B:B,M141) -> 4
M142: 206 | N142: =COUNTIF(database!B:B,M142) -> 4
M143: 213 | N143: =COUNTIF(database!B:B,M143) -> 4
M144: 219 | N144: =COUNTIF(database!B:B,M144) -> 4
M145: 221 | N145: =COUNTIF(database!B:B,M145) -> 4
M146: 223 | N146: =COUNTIF(database!B:B,M146) -> 4
M147: 229 | N147: =COUNTIF(database!B:B,M147) -> 4
M148: 233 | N148: =COUNTIF(database!B:B,M148) -> 4
M149: 90 | N149: =COUNTIF(database!B:B,M149) -> 3
M150: 96 | N150: =COUNTIF(database!B:B,M150) -> 3
M151: 105 | N151: =COUNTIF(database!B:B,M151) -> 3
M152: 108 | N152: =COUNTIF(database!B:B,M152) -> 3
M153: 110 | N153: =COUNTIF(database!B:B,M153) -> 3
M154: 113 | N154: =COUNTIF(database!B:B,M154) -> 3
M155: 121 | N155: =COUNTIF(database!B:B,M155) -> 3
M156: 125 | N156: =COUNTIF(database!B:B,M156) -> 3
M157: 126 | N157: =COUNTIF(database!B:B,M157) -> 3
M158: 128 | N158: =COUNTIF(database!B:B,M158) -> 3
M159: 129 | N159: =COUNTIF(database!B:B,M159) -> 3
M160: 130 | N160: =COUNTIF(database!B:B,M160) -> 3
M161: 153 | N161: =COUNTIF(database!B:B,M161) -> 3
M162: 161 | N162: =COUNTIF(database!B:B,M162) -> 3
M163: 167 | N163: =COUNTIF(database!B:B,M163) -> 3
M164: 174 | N164: =COUNTIF(database!B:B,M164) -> 3
M165: 185 | N165: =COUNTIF(database!B:B,M165) -> 3
M166: 195 | N166: =COUNTIF(database!B:B,M166) -> 3
M167: 198 | N167: =COUNTIF(database!B:B,M167) -> 3
M168: 200 | N168: =COUNTIF(database!B:B,M168) -> 3
M169: 208 | N169: =COUNTIF(database!B:B,M169) -> 3
M170: 231 | N170: =COUNTIF(database!B:B,M170) -> 3
M171: 16 | N171: =COUNTIF(database!B:B,M171) -> 2
M172: 51 | N172: =COUNTIF(database!B:B,M172) -> 2
M173: 56 | N173: =COUNTIF(database!B:B,M173) -> 2
M174: 57 | N174: =COUNTIF(database!B:B,M174) -> 2
M175: 80 | N175: =COUNTIF(database!B:B,M175) -> 2
M176: 81 | N176: =COUNTIF(database!B:B,M176) -> 2
M177: 89 | N177: =COUNTIF(database!B:B,M177) -> 2
M178: 94 | N178: =COUNTIF(database!B:B,M178) -> 2
M179: 101 | N179: =COUNTIF(database!B:B,M179) -> 2
M180: 109 | N180: =COUNTIF(database!B:B,M180) -> 2
M181: 115 | N181: =COUNTIF(database!B:B,M181) -> 2
M182: 150 | N182: =COUNTIF(database!B:B,M182) -> 2
M183: 169 | N183: =COUNTIF(database!B:B,M183) -> 2
M184: 182 | N184: =COUNTIF(database!B:B,M184) -> 2
M185: 192 | N185: =COUNTIF(database!B:B,M185) -> 2
M186: 196 | N186: =COUNTIF(database!B:B,M186) -> 2
M187: 197 | N187: =COUNTIF(database!B:B,M187) -> 2
M188: 199 | N188: =COUNTIF(database!B:B,M188) -> 2
M189: 204 | N189: =COUNTIF(database!B:B,M189) -> 2
M190: 205 | N190: =COUNTIF(database!B:B,M190) -> 2
M191: 209 | N191: =COUNTIF(database!B:B,M191) -> 2
M192: 211 | N192: =COUNTIF(database!B:B,M192) -> 2
M193: 212 | N193: =COUNTIF(database!B:B,M193) -> 2
M194: 216 | N194: =COUNTIF(database!B:B,M194) -> 2
M195: 222 | N195: =COUNTIF(database!B:B,M195) -> 2
M196: 227 | N196: =COUNTIF(database!B:B,M196) -> 2
M197: 232 | N197: =COUNTIF(database!B:B,M197) -> 2
M198: 234 | N198: =COUNTIF(database!B:B,M198) -> 2
M199: 26, 212 | N199: =COUNTIF(database!B:B,stats!M173) -> 2
M200: 75 | N200: =COUNTIF(database!B:B,M200) -> 1
... 41 more rows

Sheet GR-DE
A1: αγάλλομαι | B1: frohlocken
A2: αγαπάω | B2: lieben
A3: αγαπιέμαι | B3: geliebt werden
A4: αγαπώ | B4: lieben
A5: αγγέλω | B5: ankündigen, anmelden, ansagen, anzeigen, inserieren
A6: αγγίζω | B6: abtasten, anfassen, berühren, betasten, fühlen
A7: αγιάζω | B7: heiligen
A8: αγκαλιάζομαι | B8: kuscheln
A9: αγκαλιάζω | B9: sich umarmen
A10: αγκιστρεύω | B10: fischen
A11: αγκυλώνω | B11: stechen, sticheln
A12: αγκυροβολώ | B12: ankern
A13: αγνοώ | B13: ignorieren
A14: αγοράζομαι | B14: gekauft werden
A15: αγοράζω | B15: kaufen
A16: άγω | B16: fahren, führen, treiben
A17: αγωνίζομαι | B17: kämpfen
A18: αδειάζω | B18: ausleeren, auspacken, evakuieren
A19: αδρανώ | B19: dahinvegetieren, vegetieren
A20: αδυνατίζω | B20: abmagern, entkräften, ermatten, erschlaffen
A21: άδω | B21: besingen, pfeifen, singen
A22: αερίζω | B22: belüften, durchlüften, entlüften, lüften, ventilieren
A23: αηδιάζω | B23: verabscheuen
A24: αθετώ | B24: annullieren
A25: αθροίζω | B25: addieren, hinzufügen, hinzuzählen, zusammenrechnen, zusammenzählen
A26: αθωώνω | B26: freisprechen
A27: αιμορραγώ | B27: bluten
A28: αίρομαι | B28: entfallen
A29: αίρω | B29: hochheben, aufheben, auf sich nehmen
A30: αισθάνομαι | B30: empfinden, fühlen, verspüren, wahrnehmen
A31: αιτιολογώ | B31: begründen
A32: αιτούμαι | B32: beantragen
A33: αιφνιδιάζω | B33: überraschen, überraschend angreifen
A34: αιωρούμαι | B34: schweben
A35: ακμάζω | B35: geraten, glücken
A36: ακολουθώ | B36: folgen, begleiten, verfolgen
A37: ακονίζω | B37: anspitzen, schärfen, schleifen, spitzen, zuspitzen
A38: ακούγομαι | B38: gehört werden
A39: ακούω | B39: anhören, erfahren, hören, zuhören
A40: ακρωτηριάζω | B40: abnehmen, abschneiden, amputieren
A41: ακτινοβολώ | B41: ausstrahlen, strahlen
A42: ακυρώνω | B42: abbestellen, absagen, stornieren
A43: αλαλάζω | B43: schreien
A44: αλατίζω | B44: salzen
A45: αλέθω | B45: fräsen, zermahlen
A46: αλείφομαι | B46: sich einreiben
A47: αλείφω | B47: streichen
A48: αλλάζω | B48: ändern, tauschen, umtauschen, verändern, wechseln
A49: αλλαξοπιστώ | B49: konvertieren
A50: αλληθωρίζω | B50: schielen
A51: αλλοιώνω | B51: fälschen
A52: αλοιώνω | B52: verderben
A53: αμαρτάνω | B53: sündigen
A54: αμαυρώ | B54: trüben
A55: αμαυρώνω | B55: trüben, verdunkeln
A56: αμβλύνω | B56: abstumpfen
A57: αμβλώνω | B57: abbrechen, abtreiben, missglücken
A58: αμείβω | B58: belohnen, bezahlen
A59: αμιλλώμαι | B59: konkurrieren
A60: αμολάω | B60: losbinden, lockern, freilassen
A61: αμπαλάρω | B61: verpacken
A62: αμύνομαι | B62: sich verteidigen, sich wehren
A63: αμφιβάλλω | B63: zweifeln
A64: αμφιβάλω | B64: zweifeln
A65: αμφιρρέπω | B65: taumeln
A66: αμφισβητώ | B66: abstreiten, bestreiten
A67: αμφιταλαντεύομαι | B67: schwanken, zögern
A68: αναβάλλω | B68: verlegen, verschieben
A69: αναβιώνω | B69: wiederbeleben
A70: ανάβω | B70: anheizen, anmachen, anzünden, einschalten, zünden
A71: αναγγέλλω | B71: ankündigen, deklarieren, erklären
A72: αναγκάζομαι | B72: gezwungen sein
A73: αναγκάζω | B73: anregen, anreizen, antreiben, erzwingen
A74: αναγνωρίζω | B74: anerkennen, erkennen, identifizieren, wiedererkennen
A75: αναδεικνύομαι | B75: avancieren
A76: αναδεικνύω | B76: bekannt machen
A77: αναδείχνω | B77: auslesen, aussuchen, erwählen, wählen
A78: αναδεύω | B78: aufrütteln, aufwühlen, bewegen
A79: αναδίδω | B79: ausgeben, emittieren, herausgeben
A80: αναδύομαι | B80: erscheinen
A81: αναζητώ | B81: suchen
A82: αναζωογονώ | B82: erfrischen
A83: αναθέτω | B83: anweisen, beauftragen, betrauen, zuweisen
A84: αναθεωρώ | B84: revidieren
A85: αναθρέφω | B85: erziehen
A86: αναιρώ | B86: verleugnen, widerlegen
A87: ανακαινίζω | B87: reformieren, renovieren, restaurieren, umgestalten
A88: ανακαλύπτω | B88: entdecken, entlarven, herausfinden, erfinden
A89: ανακατεύομαι | B89: sich einmischen
A90: ανακατεύω | B90: mischen
A91: ανακατώνω | B91: beimischen
A92: ανακλαδίζομαι | B92: hocken
A93: ανακλώ | B93: reflektieren, widerspiegeln
A94: ανακουφίζω | B94: lindern
A95: ανακτώ | B95: wiedererlangen
A96: αναλαμβάνω | B96: übernehmen
A97: αναλογίζομαι | B97: bedenken
A98: αναλύω | B98: analysieren, auflösen, auswerten, zerlegen
A99: αναλώνω | B99: aufwenden
A100: αναμένω | B100: andauern, ausharren, verharren
A101: αναμιγνύομαι | B101: sich einmischen
A102: ανανεώνω | B102: erneuern, renovieren
A103: αναπαλαιώνω | B103: restaurieren
A104: αναπαράγομαι | B104: reproduzieren
A105: αναπαράγω | B105: vermehren
A106: αναπηδώ | B106: abprallen
A107: αναπληρώνω | B107: ersetzen
A108: αναπνέω | B108: atmen, einatmen
A109: αναπτύσσομαι | B109: entwickeln, sich entwickeln
A110: αναπτύσσω | B110: entfalten, entwickeln
A111: αναρωτιέμαι | B111: sich fragen
A112: ανασταίνομαι | B112: auferstehen
A113: ανασταίνω | B113: wiederbeleben
A114: αναστενάζω | B114: seufzen, stöhnen
A115: ανατινάζω | B115: explodieren, zerbersten
A116: ανατρέπω | B116: fällen, untergraben
A117: ανατρέχω | B117: nachschlagen
A118: αναφέρομαι | B118: erzählen
A119: αναφέρω | B119: anführen, aussprechen, behaupten, beteuern, erwähnen
A120: αναχωρώ | B120: abreisen, fahren
A121: ανεβάζω | B121: hochbringen, hochheben, steigern
A122: ανεβαίνω | B122: ansteigen, hinauf gehen
A123: ανέρπω | B123: heraufsteigen, klettern, steigen
A124: ανεφοδιάζω | B124: anschaffen, überbringen, besorgen, verschaffen, versorgen
A125: ανέχομαι | B125: dulden, tolerieren, zulassen
A126: ανήκω | B126: gehören, sich gehören
A127: ανησυχώ | B127: sich Sorgen machen, unruhig sein
A128: ανθίζω | B128: blühen
A129: ανθίσταμαι | B129: opponieren, widerstehen, widerstreben
A130: ανοίγω | B130: aufmachen, einschalten, hochfahren, öffnen
A131: ανορθώνω | B131: aufrichten
A132: ανταλάσσω | B132: umtauschen
A133: ανταλλάζω | B133: tauschen
A134: ανταμείβω | B134: vergelten, vergüten
A135: αντανακλώ | B135: reflektieren
A136: ανταποκρίνομαι | B136: antworten
A137: αντέχω | B137: aushalten, ausstehen, standhalten, tragen, verschmerzen
A138: αντηχώ | B138: dröhnen
A139: αντιγράφω | B139: abschreiben, kopieren, mogeln
A140: αντιδρώ | B140: reagieren
A141: αντικαθιστώ | B141: ersetzen
A142: αντιλαμβάνομαι | B142: begreifen, durchschauen, erblicken, erkennen, erspähen
A143: αντιλέγω | B143: widersprechen
A144: αντιμετωπίζω | B144: zu tun haben mit, j-m gegenübertreten
A145: αντιμιλώ | B145: widersprechen
A146: αντιπροσωπεύω | B146: abbilden, präsentieren
A147: αντισταθμίζω | B147: ausgleichen
A148: αντιστέκομαι | B148: trotzen, widerstehen
A149: αντιστοιχώ | B149: entsprechen,
A150: αντλώ | B150: ableiten, auspumpen
A151: αξίζω | B151: sich lohnen, wert sein, fähig sein
A152: αξιοποιώ | B152: ausnützen, nutzen, verwerten
A153: απαγγέλλω | B153: rezitieren, vortragen
A154: απαγορεύω | B154: untersagen, verbieten
A155: απαγχονίζω | B155: erhängen, hängen
A156: απαθανατίζομαι | B156: verewigen
A157: απαιτώ | B157: verlangen
A158: απαλείφω | B158: wischen
A159: απαλλάσσομαι | B159: sich entledigen
A160: απαλλάσσω | B160: entschuldigen
A161: απαντάω | B161: antworten
A162: απαντώ | B162: antworten
A163: απαρνιέμαι | B163: ableugnen, Gewohnheit ablegen, entsagen
A164: απαρνούμαι | B164: abdanken
A165: απασχολούμαι | B165: tätig sein als, arbeiten als
A166: απασχολούμε | B166: beschäftigt sein
A167: απασχολώ | B167: beschäftigen, okkupieren
A168: απατώ | B168: betrügen
A169: απεικονίζω | B169: abbilden
A170: απειλώ | B170: drohen
A171: απελαύνομαι | B171: vertrieben werden
A172: απελαύνω | B172: abschieben, ausweisen, vertreiben
A173: απελπίζομαι | B173: verzweifeln an
A174: απ'έξω | B174: auswendig
A175: απεργώ | B175: streiken
A176: απευθύνομαι | B176: ansprechen
A177: απεχθάνομαι | B177: verabscheuen
A178: απέχω | B178: sich enthalten, sich fernhalten
A179: απλοποιώ | B179: vereinfachen
A180: απλώνομαι | B180: sich ausbreiten
A181: απλώνω | B181: ausrollen
A182: από κάτω | B182: unten
A183: από πάνω | B183: oben
A184: αποβλέπω | B184: abzielen, bezwecken, richten, zielen
A185: απογοητεύομαι | B185: aufgeben
A186: απογοητεύω | B186: enttäuschen
A187: αποδεικνύω | B187: begründen, bewähren, beweisen, nachweisen, vorführen
A188: αποδέχομαι | B188: akzeptieren, annehmen, genehmigen
A189: αποδημώ | B189: abwandern, auswandern, wandern
A190: αποδίδω | B190: aufführen, ausführen, darbieten, wiedergeben
A191: αποδιοργανώνομαι | B191: sich desorganisieren
A192: αποδοκιμάζω | B192: missbilligen
A193: αποδυναμώνω | B193: abschwächen
A194: αποζημιώνω | B194: ausgleichen
A195: αποθαρρύνω | B195: entmutigen
A196: αποθεώνω | B196: bejubeln, vergöttern
A197: αποθηκεύω | B197: lagern, speichern
A198: αποθνήσκω | B198: sterben
A199: αποικίζω | B199: ansiedeln, besiedeln
A200: αποκαλύπτω | B200: aufbieten, kundgeben, kundmachen, kundtun, veröffentlichen
... 1269 more rows
